[Event "1st FIDE Olympiad DIS 2023"]
[Site "Belgrade"]
[Date "2023.01.30"]
[Round "1.21"]
[White "Morales Romero, Pedro"]
[Black "Nikac, Predrag"]
[Result "1/2-1/2"]
[ECO "C00"]
[WhiteElo "2339"]
[BlackElo "2285"]
[Annotator "TA"]
[PlyCount "153"]
[EventDate "2023.01.30"]
[EventType "team-tourn"]
[EventCountry "SRB"]
[SourceTitle "playchess.com"]
[Source "ChessBase"]
[SourceQuality "1"]
[WhiteTeam "Cuba"]
[BlackTeam "Montenegro"]
[WhiteTeamCountry "CUB"]
[BlackTeamCountry "MNE"]
[TimeControl "40/5400+30:1800+30"]

{[%evp 10,153,-14,-20,-14,-43,0,-36,0,-17,0,0,42,0,0,0,0,-113,-72,-78,-79,-67,-64,-79,-68,-52,-67,-62,-47,-34,-48,-37,-83,-117,39,0,0,0,0,0,18,0,40,0,64,0,0,0,0,0,0,0,0,0,0,0,120,116,310,285,293,268,256,132,109,108,100,131,196,195,396,0,0,0,0,0,0,0,0,0,0,0,0,0,0,0,0,0,0,0,0,0,0,0,0,0,0,0,0,0,0,0,0,0,16,0,0,0,0,0,444,0,0,0,361,466,497,474,458,0,0,0,485,477,456,445,570,566,563,559,547,269,269,269,265,265,263,957,781,589,589,0,0,0,0,0]} 1. e4 {[%emt 0:00:08]} c5 {[%emt 0:00:19]} 2. Nf3 {[%emt 0:00:13]} e6 {[%emt 0:00:52]} 3. b4 {[%emt 0:01:21]} cxb4 {[%emt 0:01:02]} 4. d4 {[%emt 0:00:10]} d5 {[%emt 0:01:17]} 5. e5 {[%emt 0:00:18]} Nc6 {[%emt 0:02:25]} 6. a3 {[%emt 0:00:33]} bxa3 {[%emt 0:02:31] C00: French: Unusual White 2nd moves.} 7. Bxa3 {[%emt 0:00:42]} Nge7 {[%emt 0:16:54][%cal Bg8e7,Be7c6,Bc6d4][%mdl 32]} 8. h4 {[%emt 0:02:31]} Bd7 {[%emt 0:05:18][%cal Ob7b5] [#] Black is slightly better.} (8... Nf5 $5 {[%cal Rf8a3]}) 9. Bd3 $146 {[%emt 0:02:00]} ({Predecessor:} 9. h5 h6 10. Bd3 Na5 11. Nbd2 Nec6 12. Bxf8 Kxf8 13. c3 b6 14. Nh4 {1-0 Zemtsov,I (2361)-Voitsekhovsky,S (2490) Nezhmetdinov Memorial 28th 2006 (5)}) 9... Na5 {[%emt 0:04:06]} (9... b5 $5 {[%cal Rb5b4]}) 10. Nbd2 {[%emt 0:02:47]} Rc8 {[%emt 0:00:46]} 11. Bb4 {[%emt 0:08:27]} (11. Ng5 $5 {[%cal Rd1f3]} Nac6 12. c3 $11 (12. Bxh7 Nxd4 13. O-O Bb5 $17)) 11... Nec6 {[%emt 0:02:10]} 12. Bxf8 {[%emt 0:00:20]} Kxf8 {[%emt 0:02:27]} 13. Ng5 {[%emt 0:00:27]} (13. c3 $11) 13... Nxd4 {[%emt 0:03:49]} (13... h6 {simplifies} 14. Ngf3 Nb4 15. Nb1 a6) 14. Qh5 {[%emt 0:19:52][%csl Gg5][%cal Rh5f7]} Be8 {[%emt 0:07:11]} (14... Nxc2+ 15. Bxc2 Qe7 16. Rxa5 $16 (16. Nxh7+ Kg8 $16) (16. Bxh7 Nc6 $16)) 15. Nxh7+ {[%emt 0:02:42]} Kg8 {[%emt 0:02:37]} 16. Qg4 $1 {[%emt 0:00:39] Nf6+ is the strong threat.} (16. Nf6+ gxf6 17. Qg4+ Kf8 18. Qxd4 Nc6 19. Qc5+ Qe7 20. Qxe7+ Kxe7 21. exf6+ Kxf6 $17) 16... Nxc2+ {[%emt 0:11:54]} 17. Bxc2 {[%emt 0:00:13]} Rxc2 {[%emt 0:00:37]} 18. Nf6+ {[%emt 0:00:09]} Kf8 {[%emt 0:00:07]} 19. Nxe8 {[%emt 0:01:49][%mdl 64] Remove Defender} Kxe8 {[%emt 0:03:42]} (19... Qxe8 20. Qb4+ (20. Rxa5 $2 Rc1+ {[%mdl 64] Skewer} 21. Ke2 Rxh1 $19) 20... Qe7 21. Qxa5 $16) 20. Qxg7 {[%emt 0:00:07]} Rf8 {[%emt 0:02:57]} (20... Rxh4 $2 21. Qg8+ Ke7 22. Qxd8+ (22. Rxh4 $2 Qxg8 23. Rxa5 Qxg2 $19) 22... Kxd8 23. Rxh4 $18) 21. h5 {[%emt 0:10:23] [#]} Rxd2 $2 {[%emt 0:01:22]} 22. h6 {[%emt 0:00:42]} Qb6 {[%emt 0:08:42][%csl Gd2][%cal Rb6f2]} 23. O-O {[%emt 0:02:58]} Rd4 {[%emt 0:04:33][%cal Bd2d4,Bd4e4,Be4e3][%mdl 32]} 24. g3 {[%emt 0:00:00] Wards off Rf4} Nc6 {[%emt 0:03:20]} 25. h7 {[%emt 0:00:00][%cal Og7f8][%mdl 1024] White has compensation.} Re4 {[%emt 0:00:48]} 26. Rab1 {[%emt 0:01:49]} Qc7 {[%emt 0:00:37]} (26... Qc5 $2 27. Rxb7 (27. h8=R Rb4 $11) (27. h8=Q Rxh8 28. Qxh8+ Qf8 $16) 27... Nd8 28. Rb8 $18 (28. h8=R Nxb7 29. Rb1 Rxh8 $19 {[%mdl 64] Remove Defender})) (26... Rb4 $11 27. Ra1 (27. h8=R Rxh8 28. Qxh8+ Kd7 $11) (27. Qxf8+ Kxf8 28. Rxb4 Qxb4 $11) 27... Qc5) 27. f4 {[%emt 0:01:55]} (27. Qxf8+ $14 Kxf8 28. h8=Q+ (28. h8=R+ $2 Kg7 $19) 28... Ke7 29. Qf6+ (29. f4 Nd8 $11) 29... Ke8 30. Qh8+ Ke7 31. Qf6+ (31. f4 Nd8 $11) 31... Ke8 32. Qh8+ Ke7) 27... Nd4 $11 {[%emt 0:00:44]} 28. Rf2 $40 {[%emt 0:04:51][%mdl 128] White mounts an attack.} Re3 {[%emt 0:00:48]} (28... Ne2+ $2 29. Kg2 $18) 29. Qxf8+ {[%emt 0:03:21][%mdl 64] Remove Defender} Kxf8 {[%emt 0:00:02]} 30. h8=Q+ {[%emt 0:00:12]} (30. h8=R+ $2 Kg7 31. Rh5 Rxg3+ 32. Kh1 Qc3 $19) 30... Ke7 {[%emt 0:00:13]} 31. Qf6+ {[%emt 0:03:26]} Ke8 {[%emt 0:00:20]} 32. Kh2 {[%emt 0:07:44]} a5 {[%emt 0:03:17]} (32... Rc3 $11) 33. Qh8+ $1 $16 {[%emt 0:05:29]} (33. Qg7 $6 Rc3 $11) 33... Ke7 $2 {[%emt 0:00:23] [#]} (33... Kd7 $16) 34. f5 $1 $18 {[%emt 0:02:26][%mdl 512]} Nxf5 {[%emt 0:00:45]} (34... exf5 $2 35. Qh4+ Ke8 36. Qxd4 Qxe5 37. Qxe5+ Rxe5 38. Rxb7 $18) (34... Qxe5 35. Rxb7+) 35. g4 {[%emt 0:02:56]} Rxe5 {[%emt 0:00:53]} 36. Kg1 {[%emt 0:00:34]} (36. gxf5 $2 Rxf5+ 37. Kg2 Rxf2+ 38. Kxf2 Qc2+ 39. Kf3 Qxb1 $19) ({White should try} 36. Kg2 $18) 36... Re4 $16 {[%emt 0:07:08]} 37. gxf5 {[%emt 0:01:10]} Qg3+ {[%emt 0:00:29]} 38. Rg2 {[%emt 0:00:09]} Qe3+ {[%emt 0:00:26]} (38... Re1+ $16 {is a better defense.} 39. Rxe1 Qxe1+ 40. Kh2 Qe4) 39. Kh1 $18 {[%emt 0:00:23]} b5 {[%emt 0:00:22]} (39... b6 {might work better.}) 40. Qh2 $2 {[%emt 0:05:02]} (40. Rxb5 $2 Qe1+ 41. Kh2 Rh4+ $19) (40. fxe6 $18 Rxe6 41. Qh4+ (41. Rxb5 $2 Qc1+ 42. Rg1 Rh6+ $19) 41... f6 42. Rxb5 (42. Rg7+ Kd6 $16)) 40... Rf4 $11 {[%emt 0:01:12] White must now prevent ...Qe4.} 41. Qg3 {[%emt 0:13:34]} (41. Rxb5 $2 Qe1+ 42. Qg1 (42. Rg1 $2 Qe4+ 43. Rg2 Rf1+ $19) 42... Rf1 43. Rb7+ Kd6 44. fxe6 (44. Rb6+ $2 Kc7 $19) 44... Rxg1+ 45. Rxg1 Qh4+ 46. Kg2 fxe6 47. Rb6+ Kc5 $19) 41... Qe4 {[%emt 0:07:30]} (41... Qxg3 42. Rxg3 b4 43. Ra1 $16) 42. Re1 {[%emt 0:12:57]} (42. Rxb5 $2 Rh4+ 43. Kg1 Qd4+ 44. Rf2 Qd1+ 45. Rf1 Rh1+ 46. Kxh1 Qxf1+ 47. Kh2 Qxb5 $19) 42... Qxf5 {[%emt 0:04:17]} 43. Qa3+ {[%emt 0:02:32]} b4 {[%emt 0:02:10]} 44. Qe3 {[%emt 0:02:29] Active counter play!} d4 {[%emt 0:08:16]} 45. Qc1 {[%emt 0:00:42] Threatening mate with Qc7+.} Kd6 {[%emt 0:01:22] Dodges Qc7+} 46. Qc4 {[%emt 0:01:34]} Qc5 {[%emt 0:02:13]} 47. Qa6+ {[%emt 0:00:41]} Ke7 {[%emt 0:00:25][%cal Od4d3]} 48. Qb7+ {[%emt 0:02:13]} Kf6 {[%emt 0:00:25]} 49. Qb8 {[%emt 0:00:20]} Rh4+ {[%emt 0:00:27]} 50. Kg1 {[%emt 0:00:06] Qd8+ would kill now.} d3+ {[%emt 0:04:32]} 51. Rf2+ {[%emt 0:00:08]} Ke7 {[%emt 0:01:23]} 52. Qb7+ {[%emt 0:01:49]} (52. Re5 Qc1+) 52... Kd6 $1 {[%emt 0:01:02]} 53. Qb8+ {[%emt 0:00:53]} Ke7 {[%emt 0:00:40]} 54. Qb7+ {[%emt 0:01:10]} (54. Re5 Qc1+) 54... Kd6 $1 {[%emt 0:00:02]} 55. Qa6+ {[%emt 0:00:33]} Ke7 {[%emt 0:00:09]} 56. Qxd3 {[%emt 0:00:37] Threatens to win with Qf3.} Rf4 {[%emt 0:01:37] Repels Qf3} 57. Ref1 {[%emt 0:00:36]} a4 {[%emt 0:00:27]} 58. Qg3 {[%emt 0:00:22] Wards off f5} Rf5 {[%emt 0:00:16] Hoping for ...Rg5.} 59. Qh4+ {[%emt 0:00:30]} Ke8 $2 {[%emt 0:00:14][%mdl 8192]} (59... f6 $11 {and Black has nothing to worry.} 60. Qh7+ Kf8 61. Qh6+ Kf7 62. Qh7+ Kf8 63. Qh8+ Kf7 64. Qh7+ Kf8) 60. Qh8+ $2 {[%emt 0:00:18]} (60. Rd1 $1 $18 {[%csl Gd1][%cal Rh4d8]} Rg5+ 61. Kh2 (61. Kf1 Qb5+ 62. Re2 Qf5+ 63. Rf2 Qb5+ 64. Re2 Qf5+ 65. Rf2 Qb5+ $11) 61... Qc7+ 62. Qf4 Rh5+ 63. Kg2 Qb7+ 64. Kg3 (64. Qf3 Qxf3+ 65. Rxf3 b3 $11)) 60... Ke7 {[%emt 0:00:10] ...Rg5+ would be deadly.} 61. Qh4+ {[%emt 0:00:15]} Ke8 $2 {[%emt 0:00:12][%mdl 8192]} (61... Kd7 $11 62. Rd1+ Kc6 63. Qe4+ Kc7) 62. Rd1 $1 $18 {[%emt 0:01:06][%csl Gd1][%cal Rh4d8]} Rg5+ {[%emt 0:01:34]} 63. Kh2 {[%emt 0:00:14]} ({Stronger than} 63. Kf1 Qb5+ 64. Re2 Qf5+ 65. Rf2 Qb5+ 66. Re2 Qf5+ 67. Rf2 Qb5+ $11) 63... Qc7+ {[%emt 0:00:47]} (63... Rh5 $2 64. Rd8#) 64. Kh1 {[%emt 0:00:08] Intending Qh8+ and mate.} Qc6+ {[%emt 0:00:14]} 65. Kh2 {[%emt 0:00:08] White threatens Qh8+ and mate. The board is on fire.} Qc7+ {[%emt 0:00:14] [#]} 66. Qf4 $1 {[%emt 0:00:34]} Rh5+ {[%emt 0:01:00]} 67. Kg3 {[%emt 0:00:29]} Qc3+ {[%emt 0:00:19]} 68. Rf3 {[%emt 0:00:10][%csl Gf3][%cal Rf4f7]} Qg7+ {[%emt 0:00:33]} 69. Kf2 {[%emt 0:00:07] White wants to mate with Qb8+.} Qb2+ {[%emt 0:00:28]} 70. Rd2 {[%emt 0:00:06]} (70. Kg1 $142 {[%csl Gf3][%cal Rf4f7]} Qg7+ 71. Rg3) 70... Rh2+ {[%emt 0:00:20]} 71. Kg3 $1 {[%emt 0:00:37][%csl Gf3][%cal Rf4f7]} Rxd2 {[%emt 0:01:30]} (71... Qxd2 72. Qxf7+ Kd8 73. Qf8+ Kd7 74. Rf7+ Kc6 75. Qc8+ Kd6 76. Qc7+ Kd5 77. Rd7+ Ke4 78. Qc4+ Kf5 79. Qg4+ Kf6 80. Qg7+ Kf5 81. Rxd2) 72. Qxf7+ {[%emt 0:00:06] KQR-KQR} Kd8 {[%emt 0:00:06]} 73. Qf8+ {[%emt 0:00:13]} Kd7 {[%emt 0:00:20]} 74. Rf7+ {[%emt 0:00:06]} Kc6 {[%emt 0:00:12] [#]} 75. Qc8+ $2 {[%emt 0:00:42]} (75. Qe8+ $1 $18 Kc5 76. Rc7+ Kd4 77. Qd8+ Ke3 78. Qg5+ Ke4 79. Qf4+ Kd5 80. Rd7+ {[%mdl 64] Skewer} Kc5 81. Rxd2 (81. Qxd2 $2 {too greedy.} Qxd2 82. Rxd2 b3 $19) 81... Qc3+ 82. Kg2) 75... Kd5 $1 $11 {[%emt 0:01:04] ( -> ...Qe5+)} 76. Rd7+ {[%emt 0:01:00]} Ke4 {[%emt 0:00:49]} (76... Ke5 $2 77. Qc7+ Kf6 78. Qf4+ Kg6 79. Rxd2 (79. Qxd2 Qxd2 80. Rxd2 a3 $18) 79... Qc3+ 80. Kh2 Qh8+ 81. Kg1 Qa1+ 82. Kg2 $18) 77. Qc4+ {[%emt 0:01:15] A brilliant game!   Weighted Error Value: White=0.32/Black=0.29 (precise)} 1/2-1/2

[Event "1st FIDE Olympiad DIS 2023"]
[Site "Belgrade"]
[Date "2023.01.30"]
[Round "1.22"]
[White "Ivanovic, Milan"]
[Black "Larduet Despaigne, Carlos"]
[Result "0-1"]
[ECO "D48"]
[WhiteElo "1908"]
[BlackElo "2277"]
[Annotator "TA"]
[PlyCount "54"]
[EventDate "2023.01.30"]
[EventType "team-tourn"]
[EventCountry "SRB"]
[SourceTitle "playchess.com"]
[Source "ChessBase"]
[SourceQuality "1"]
[WhiteTeam "Montenegro"]
[BlackTeam "Cuba"]
[WhiteTeamCountry "MNE"]
[BlackTeamCountry "CUB"]
[TimeControl "40/5400+30:1800+30"]

{[%evp 27,54,-18,-13,-33,-30,-50,-63,-53,-41,-60,-61,-55,-60,-56,-55,-88,-83,-100,-100,-93,-93,-128,-127,-118,-118,-632,-626,-605,0]} 1. d4 {[%emt 0:00:25]} d5 {[%emt 0:00:27]} 2. c4 {[%emt 0:00:21]} c6 {[%emt 0:00:13]} 3. Nc3 {[%emt 0:03:23]} Nf6 {[%emt 0:00:23]} 4. e3 {[%emt 0:02:49]} e6 {[%emt 0:00:55]} 5. Nf3 {[%emt 0:00:42]} Nbd7 {[%emt 0:00:23]} 6. Bd3 {[%emt 0:00:29]} dxc4 {[%emt 0:00:33]} 7. Bxc4 {[%emt 0:00:21]} b5 {[%emt 0:00:05]} 8. Bd3 {[%emt 0:02:33]} Bb7 {[%emt 0:00:59]} 9. O-O {[%emt 0:01:17]} a6 {[%emt 0:01:00]} 10. b3 {[%emt 0:03:33]} c5 {[%emt 0:02:04]} 11. Bb2 {[%emt 0:03:22]} Be7 {[%emt 0:01:14]} 12. Rc1 {[%emt 0:12:23]} O-O {[%emt 0:00:14]} 13. Qe2 {[%emt 0:04:04]} Qb6 {[%emt 0:01:40]} 14. Rfd1 {[%emt 0:08:45]} Rac8 {[%emt 0:05:23]} 15. Ng5 {[%emt 0:07:32] [#] D48: Semi-Slav: Meran System: 7...b5 8 Bd3 a6.} h6 $146 {[%emt 0:14:50]} ({Predecessor:} 15... Rfd8 16. Nce4 Nxe4 17. Nxe4 f5 18. Nd2 Bf6 19. Nf3 Bxf3 20. Qxf3 cxd4 21. Rxc8 Rxc8 22. exd4 g6 23. Qe2 {½-½ Niebler,A (1771)-Proeschel,G (1835) Mittelfranken-chTB2b 1011 2010 (3.6)}) 16. Nge4 {[%emt 0:02:20]} cxd4 {[%emt 0:00:39]} 17. exd4 {[%emt 0:00:58] Black is slightly better.} Rfe8 {[%emt 0:05:19]} (17... Qxd4 $2 18. Nxf6+ (18. Bxb5 Qxd1+ 19. Rxd1 axb5 $18) 18... Qxf6 19. Nd5 Bxd5 20. Bxf6 Nxf6 21. Rxc8 Rxc8 22. Qe1 $18) 18. Bb1 {[%emt 0:01:16][%cal Od4d5]} Nxe4 {[%emt 0:15:27]} 19. Nxe4 {[%emt 0:00:21]} Nf6 {[%emt 0:01:24]} 20. Rxc8 {[%emt 0:21:14]} Rxc8 {[%emt 0:01:18]} 21. Nxf6+ {[%emt 0:04:25]} Bxf6 {[%emt 0:00:16]} 22. Be4 {[%emt 0:04:15]} Bxe4 {[%emt 0:03:38]} 23. Qxe4 {[%emt 0:00:07]} Qc7 $40 {[%emt 0:01:28][%mdl 128] Black attacks with force.} 24. Qe2 {[%emt 0:02:26]} Qc2 {[%emt 0:00:51]} 25. Kf1 {[%emt 0:00:37]} Bg5 {[%emt 0:05:10] Strongly threatening ...Qxe2+. Black is more active.} 26. g3 $2 {[%emt 0:00:50][%mdl 8192]} (26. Ba3 $17) 26... Qxe2+ $19 {[%emt 0:00:28][%mdl 64] [#] Remove Defender} 27. Kxe2 {[%emt 0:00:03]} Rc6 $2 {[%emt 0:00:17][%mdl 32768] Weighted Error Value: White=0.73/Black=0.01 (flawless) . Loss on time!?} ({Black should try} 27... Rc2+ $19 28. Kd3 Rxb2) 0-1

[Event "1st FIDE Olympiad DIS 2023"]
[Site "Belgrade"]
[Date "2023.01.30"]
[Round "1.23"]
[White "Interian Rodriguez, Alberto D."]
[Black "Damjanovic, Radovan"]
[Result "1/2-1/2"]
[ECO "B90"]
[WhiteElo "2082"]
[BlackElo "1807"]
[Annotator "TA"]
[PlyCount "92"]
[EventDate "2023.01.30"]
[EventType "team-tourn"]
[EventCountry "SRB"]
[SourceTitle "playchess.com"]
[Source "ChessBase"]
[SourceQuality "1"]
[WhiteTeam "Cuba"]
[BlackTeam "Montenegro"]
[WhiteTeamCountry "CUB"]
[BlackTeamCountry "MNE"]
[TimeControl "40/5400+30:1800+30"]

{[%evp 17,92,26,69,68,54,56,69,59,59,61,131,131,133,118,122,122,124,123,127,119,138,50,46,43,44,44,111,26,51,25,29,28,29,27,29,0,0,0,0,0,5,6,22,19,56,55,58,52,47,48,49,52,54,55,112,114,149,153,134,70,68,2,4,10,8,0,0,0,0,0,0,0,0,0,0,0,0]} 1. e4 {[%emt 0:03:05]} c5 {[%emt 0:00:53]} 2. Nf3 {[%emt 0:00:08]} d6 {[%emt 0:00:30]} 3. d4 {[%emt 0:00:04]} cxd4 {[%emt 0:00:22]} 4. Nxd4 {[%emt 0:00:05]} Nf6 {[%emt 0:00:52]} 5. Nc3 {[%emt 0:00:04]} a6 {[%emt 0:00:16]} 6. f3 {[%emt 0:00:06]} e5 {[%emt 0:02:01]} 7. Nb3 {[%emt 0:00:03]} Be6 {[%emt 0:00:49]} 8. Be3 {[%emt 0:00:03]} Be7 {[%emt 0:01:02]} 9. Qd2 {[%emt 0:01:31]} d5 {[%emt 0:05:00]} 10. exd5 {[%emt 0:00:38] B90: Sicilian Najdorf: Unusual White 6th moves, 6 Be3 Ng4 and 6 Be3 e5.} Nxd5 {[%emt 0:03:41]} 11. Nxd5 {[%emt 0:00:08]} Qxd5 {[%emt 0:05:09]} 12. Qxd5 {[%emt 0:00:12] White is slightly better.} Bxd5 {[%emt 0:09:05]} 13. O-O-O Bc6 {[%emt 0:01:48] [#]} (13... Be6 $14) 14. Na5 $1 $16 {[%emt 0:02:19] [#]} Bd8 $146 {[%emt 0:04:25]} ({Predecessor:} 14... O-O 15. Nxc6 Nxc6 16. Bb6 Bd8 17. Bc5 Bg5+ 18. Kb1 Rfd8 19. Bd3 g6 20. h4 Bf6 {1-0 Sancho Casale,J (1980)-Biarge Carnicer,A (1878) Aragon-chT Honor GrB 2015 (4.28)}) 15. Nxc6 {[%emt 0:02:51]} Nxc6 {[%emt 0:00:31]} 16. Bc4 {[%emt 0:00:33]} Rc8 {[%emt 0:06:09] Black is weak on the light squares} 17. Kb1 {[%emt 0:07:58]} O-O {[%emt 0:09:08]} 18. Rd7 {[%emt 0:01:08]} Ba5 {[%emt 0:05:01]} 19. Rhd1 {[%emt 0:03:38] White has more active pieces.} ({Resist} 19. Rxb7 $6 Nd8 20. Bxa6 Nxb7 21. Bxb7 Rb8 $14) ({Better is} 19. Bb3 $16) 19... Nb8 $14 {[%emt 0:01:04][%csl LRc4,LRd7][%cal Ob8d7]} 20. R7d5 {[%emt 0:00:11]} Rxc4 {[%emt 0:18:27]} 21. Rxa5 b5 {[%emt 0:09:15]} (21... Rfc8 $14) 22. Ra3 {[%emt 0:06:41]} (22. b3 $16 Rc7 23. a4) 22... Rfc8 {[%emt 0:01:12]} 23. Rad3 {[%emt 0:00:17] White threatens Rd8+ and mate.} f6 {[%emt 0:00:56]} 24. Rd8+ {[%emt 0:01:37]} Kf7 {[%emt 0:00:00]} 25. Rxc8 {[%emt 0:00:31]} Rxc8 $11 {[%emt 0:00:00][%mdl 4096] Endgame KRB-KRN} 26. c3 {[%emt 0:02:27]} Ke6 {[%emt 0:00:42]} 27. Kc2 {[%emt 0:11:04]} Nd7 {[%emt 0:00:39]} 28. b4 {[%emt 0:04:59]} Rc6 {[%emt 0:01:05] [#]} 29. a4 $1 {[%emt 0:00:34]} bxa4 {[%emt 0:03:30]} (29... Nb6 30. Bxb6) 30. Ra1 {[%emt 0:00:03]} Nb6 {[%emt 0:00:56]} 31. Bxb6 {[%emt 0:00:35]} Rxb6 {[%emt 0:00:10]} 32. Rxa4 $14 {[%emt 0:00:01] KR-KR} f5 {[%emt 0:00:39]} 33. c4 {[%emt 0:00:24]} e4 {[%emt 0:01:54]} 34. fxe4 {[%emt 0:01:35]} fxe4 {[%emt 0:00:18]} 35. Kd2 {[%emt 0:00:03]} Ke5 {[%emt 0:00:32]} ({Black should try} 35... Rc6 $14) 36. Ke3 $16 {[%emt 0:00:05]} Re6 {[%emt 0:01:13]} 37. Ra5+ {[%emt 0:00:27]} Kf6 {[%emt 0:00:49]} 38. b5 {[%emt 0:00:22]} (38. Rd5 $16) 38... axb5 $14 {[%emt 0:00:00]} 39. cxb5 {[%emt 0:00:02]} (39. Rxb5 $14 Rc6 40. Kd4 (40. Kxe4 Rxc4+ 41. Kd3 Ra4 $11)) 39... Re5 $1 $11 {[%emt 0:00:39] The position is equal.} 40. Ra6+ {[%emt 0:06:53]} Kf5 {[%emt 0:01:26]} 41. Ra7 {[%emt 0:32:47]} Rxb5 {[%emt 0:01:10]} 42. Rxg7 {[%emt 0:02:17] Hoping for g4+.} Rb3+ {[%emt 0:27:45]} 43. Kf2 {[%emt 0:00:01]} h5 {[%emt 0:01:25]} 44. Rf7+ {[%emt 0:01:48]} Kg5 {[%emt 0:00:32]} 45. Re7 {[%emt 0:00:59]} Kf5 {[%emt 0:00:53]} 46. Rf7+ {[%emt 0:00:27]} Kg5 {[%emt 0:00:18] Weighted Error Value: White=0.15 (very precise) /Black=0.15 (very precise)} 1/2-1/2

[Event "1st FIDE Olympiad DIS 2023"]
[Site "Belgrade"]
[Date "2023.01.30"]
[Round "1.24"]
[White "Lacmanovic, Radenko"]
[Black "Batista Rivera, Idalis"]
[Result "0-1"]
[ECO "C02"]
[WhiteElo "1349"]
[BlackElo "1775"]
[Annotator "NA RC COMBH"]
[PlyCount "62"]
[EventDate "2023.01.30"]
[EventType "team-tourn"]
[EventCountry "SRB"]
[SourceTitle "playchess.com"]
[Source "ChessBase"]
[SourceQuality "1"]
[WhiteTeam "Montenegro"]
[BlackTeam "Cuba"]
[WhiteTeamCountry "MNE"]
[BlackTeamCountry "CUB"]
[TimeControl "40/5400+30:1800+30"]

1. e4 {[%emt 0:00:20]} e6 {[%emt 0:00:06]} 2. d4 {[%emt 0:00:24]} d5 {[%emt 0:00:14]} 3. e5 {[%emt 0:00:20]} c5 {[%emt 0:00:16]} 4. c3 {[%emt 0:01:33]} Nc6 {[%emt 0:00:09]} 5. Nf3 {[%emt 0:00:17]} Bd7 {[%emt 0:00:22]} 6. Be3 {[%emt 0:01:58]} Qb6 {[%emt 0:00:34]} 7. b3 {[%emt 0:01:59]} cxd4 {[%emt 0:01:16]} 8. cxd4 {[%emt 0:00:40]} Rc8 {[%emt 0:02:00]} 9. a3 {[%emt 0:11:49]} a5 {[%emt 0:04:27]} 10. Nc3 {[%emt 0:03:22]} Nge7 {[%emt 0:05:25]} 11. Bd3 {[%emt 0:02:49]} Ng6 {[%emt 0:10:56]} 12. O-O {[%emt 0:02:34]} Be7 {[%emt 0:01:45]} 13. g3 {[%emt 0:01:50]} Na7 {[%emt 0:07:13]} 14. Bd2 {[%emt 0:07:21]} Nb5 {[%emt 0:04:46]} 15. Nxb5 {[%emt 0:01:50]} Bxb5 {[%emt 0:00:13]} 16. Bxb5+ {[%emt 0:01:39]} Qxb5 {[%emt 0:00:10]} 17. a4 {[%emt 0:04:14]} Qb6 {[%emt 0:03:38]} 18. Rc1 {[%emt 0:04:28]} O-O {[%emt 0:01:26]} 19. Rxc8 {[%emt 0:02:47]} Rxc8 {[%emt 0:00:00]} 20. Qb1 {[%emt 0:01:05]} Bb4 {[%emt 0:06:12]} 21. Rc1 {[%emt 0:05:06]} Rxc1+ {[%emt 0:02:10]} 22. Bxc1 {[%emt 0:00:14]} Qc7 {[%emt 0:03:10]} 23. Bd2 {[%emt 0:04:55]} Bxd2 {[%emt 0:00:48]} 24. Nxd2 {[%emt 0:00:16]} Qc3 {[%emt 0:00:00]} 25. Qe1 {[%emt 0:06:55]} Qxd4 {[%emt 0:00:58]} 26. Nf3 {[%emt 0:00:03]} Qd3 {[%emt 0:04:10]} 27. Nd2 {[%emt 0:03:44]} h6 {[%emt 0:01:30]} 28. f4 {[%emt 0:01:36]} Ne7 {[%emt 0:01:18]} 29. Qc1 {[%emt 0:02:14]} Nc6 {[%emt 0:02:43]} 30. Qb2 {[%emt 0:02:37]} Nd4 {[%emt 0:02:38]} 31. Qc1 {[%emt 0:05:39]} Ne2+ {[%emt 0:00:16]} 0-1